bitfinex-derivatives/quotes_ETHF0:USTF0_20250824
["timestamp","ask_amount","ask_price","bid_price","bid_amount"]
[1756002141483,0.47250866,4778.9,4778.8,1.63975392]
[1756002141675,3.2078,4779.7,4779.6,0.96717]
[1756002141876,3.68032565,4779.7,4779.6,2.05832392]
[1756002142289,3.2078,4780.6,4780.5,0.4185]
[1756002142585,22.82306588,4780.6,4780.5,1.69665392]
[1756002142785,22.82306588,4780.6,4780.5,2.05825392]
[1756002143877,30.57041,4781.5,4781.0,1.19125]
[1756002143878,3.2078,4781.1,4781.0,1.19125]
[1756002144086,22.3508,4781.1,4781.0,2.05820392]
[1756002145081,3.2078,4781.1,4781.0,2.05820392]
[1756002145282,3.2078,4781.6,4781.5,0.96701]
[1756002145484,30.151,4782.9,4781.9,0.41837]
[1756002145485,3.2078,4782.2,4781.9,0.41837]
[1756002145786,3.2078,4782.2,4782.1,0.2242]
[1756002145986,22.82200433,4782.2,4782.1,0.2242]
[1756002146185,22.3508,4782.2,4782.1,0.2242]
[1756002146379,3.2078,4782.2,4782.1,0.2242]
[1756002146581,22.3508,4782.2,4782.1,1.356]
[1756002146782,22.3508,4782.2,4782.1,1.64462628]
[1756002147288,22.3508,4782.2,4782.1,1.356]
[1756002147690,22.3508,4782.2,4782.1,0.9944]
[1756002147887,22.3508,4782.2,4782.1,0.3834]
[1756002148787,22.3508,4782.2,4782.1,0.2242]
[1756002149779,22.3508,4782.2,4781.8,0.41838]
[1756002149985,22.3508,4782.2,4782.0,0.2242]
[1756002150685,22.3508,4782.2,4782.0,0.64256]
[1756002150880,22.3508,4782.2,4782.1,0.2242]
[1756002151393,22.3508,4782.2,4782.1,0.4458]
[1756002151992,22.76915,4782.2,4781.8,0.2242]
[1756002152197,22.3508,4782.2,4782.0,0.41836]
[1756002152587,22.3508,4782.2,4782.1,0.2242]
[1756002153692,22.3508,4782.2,4781.6,0.4616]
[1756002153888,3.2078,4781.7,4781.4,0.41841]
[1756002154088,19.136,4781.6,4781.4,0.41841]
[1756002154287,0.41843,4781.4,4781.2,0.2311]
[1756002154486,19.134,4781.3,4780.6,0.2311]
[1756002154791,3.2078,4781.1,4780.6,0.2311]
[1756002154992,0.41847,4780.8,4780.6,0.2311]
[1756002155190,3.2078,4781.1,4780.3,0.41851]
[1756002155191,19.55549,4780.7,4780.3,0.64961]
[1756002155388,3.2078,4780.6,4780.4,0.2311]
[1756002155585,0.41851,4780.4,4780.0,0.41853]
[1756002155892,3.62633,4780.1,4779.8,0.64965]
[1756002156097,19.55954,4780.0,4779.8,0.2311]
[1756002156596,19.141,4780.0,4779.9,0.2311]
[1756002156788,19.141,4780.0,4779.9,1.012]
[1756002160402,19.141,4780.0,4779.9,0.3865]
[1756002160595,0.41855,4779.9,4779.6,0.64967]
[1756002160797,19.133,4779.8,4779.0,3.62642]
[1756002160996,19.133,4779.8,4779.1,0.41861]
[1756002161397,19.133,4779.8,4779.6,0.41857]
[1756002161602,3.2078,4780.1,4780.0,1.43054]
[1756002161800,3.2078,4780.1,4780.0,1.78644]
[1756002162902,22.3538,4780.1,4780.0,0.64964]
[1756002163102,22.3538,4780.1,4780.0,1.78644]
[1756002163403,22.3538,4780.1,4780.0,1.43054]
[1756002163804,22.3538,4780.1,4780.0,1.78644]
[1756002164699,22.3538,4780.1,4780.0,0.64964]
[1756002165000,22.3538,4780.1,4780.0,1.03554]
[1756002165304,22.3538,4780.1,4780.0,1.78644]
[1756002166114,22.3538,4780.1,4780.0,0.41854]
[1756002166610,22.3538,4780.1,4780.0,0.64964]
[1756002168105,22.3538,4780.1,4780.0,0.41854]
[1756002168302,22.3538,4780.1,4779.5,3.4389]
[1756002168303,22.3538,4780.1,4779.8,0.41855]
[1756002168611,22.3538,4780.1,4779.9,0.41855]
[1756002168814,22.3538,4780.1,4780.0,0.2311]
[1756002169609,22.3538,4780.1,4780.0,1.3679]
[1756002169809,19.144,4780.3,4780.2,0.5504]
[1756002170011,19.144,4780.3,4780.2,1.3679]
[1756002170411,3.2078,4780.6,4780.5,0.9689]
[1756002170609,22.3508,4780.6,4780.5,1.7864]
[1756002170817,3.2078,4781.2,4781.1,0.41845]
[1756002171006,22.3548,4781.2,4781.1,0.64955]
[1756002172005,22.3548,4781.2,4781.1,1.43045]
[1756002172212,19.147,4781.2,4781.1,2.07521353]
[1756002172402,19.148,4781.4,4781.2,0.64953]
[1756002172608,19.148,4781.4,4781.3,0.70729353]
[1756002173106,19.148,4781.4,4781.3,1.32429353]
[1756002173306,19.148,4781.4,4781.3,0.93839353]
[1756002173815,19.148,4781.4,4781.3,0.28886353]
[1756002174109,19.148,4781.4,4781.3,0.28956525]
[1756002174310,19.148,4781.4,4781.3,0.52066525]
[1756002175415,19.148,4781.4,4781.3,1.65746525]
[1756002177516,19.148,4781.4,4781.3,1.65751483]
[1756002178619,19.148,4781.4,4781.3,1.30161483]
[1756002179523,19.148,4781.4,4781.3,1.07111483]
[1756002179812,19.148,4781.4,4781.3,0.52071483]
[1756002181621,19.148,4781.4,4781.3,0.28961483]
[1756002181812,19.61947313,4781.4,4781.3,0.28961483]
[1756002182721,0.41847,4780.8,4780.6,0.41848]
[1756002182921,0.41849,4780.6,4780.4,0.4185]
[1756002183222,22.3418,4780.7,4780.6,0.41849]
[1756002183422,22.81345506,4780.7,4780.6,0.93958941]
[1756002183715,22.81345506,4780.7,4780.6,0.28999941]
[1756002183912,3.67945506,4780.7,4780.5,0.63669]
[1756002184115,22.3418,4780.7,4780.6,1.10944313]
[1756002184319,22.8135554,4780.7,4780.6,1.10944313]
[1756002184516,22.8135554,4780.7,4780.6,0.51334313]
[1756002185117,22.8135554,4780.7,4780.6,0.27624313]
[1756002185311,3.6795554,4780.7,4780.6,1.60684313]
[1756002185513,22.3518,4780.7,4780.6,1.60684313]
[1756002185721,22.82355911,4780.7,4780.6,1.60684313]
[1756002186109,22.82355911,4780.7,4780.6,1.60690228]
[1756002186314,22.82355911,4780.7,4780.6,1.60689142]
[1756002186719,22.82355911,4780.7,4780.6,1.60691014]
[1756002187023,22.3518,4780.7,4780.6,1.60691014]
[1756002187425,22.3518,4780.7,4780.6,1.25661014]
[1756002188713,19.151,4780.9,4780.8,0.5228]
[1756002188913,19.151,4780.9,4780.8,2.02538014]
[1756002189118,3.2078,4781.4,4781.3,0.41843]
[1756002189331,22.3558,4781.4,4781.3,0.65553]
[1756002189518,22.3558,4781.4,4781.3,0.41843]
[1756002190424,22.3558,4781.4,4781.3,0.87593]
[1756002190624,22.3558,4781.4,4781.3,0.65553]
[1756002191429,22.3558,4781.4,4781.3,0.93197911]
[1756002191727,22.3558,4781.4,4781.3,1.67517911]
[1756002191924,22.3558,4781.4,4781.3,2.02547911]
[1756002192226,3.2078,4781.9,4781.4,1.46446]
[1756002192422,19.144,4781.8,4781.7,0.94119]
[1756002192623,19.144,4781.8,4781.7,2.02543911]
[1756002196222,19.144,4781.8,4781.7,2.0253229]
[1756002198029,0.41834,4782.3,4782.1,0.41835]
[1756002198223,19.60687746,4782.2,4782.1,0.65545]
[1756002198426,19.60687746,4782.2,4782.1,0.93175582]
[1756002198618,19.60687746,4782.2,4782.1,2.02525582]
[1756002198821,3.2078,4782.4,4782.3,1.39864]
[1756002199028,3.2078,4782.9,4782.8,0.4183]
[1756002199224,3.2078,4782.9,4782.8,0.8758]
[1756002199225,22.81375918,4782.9,4782.8,0.8758]
[1756002199822,22.81375918,4782.9,4782.8,1.3986]
[1756002200027,22.81375918,4782.9,4782.8,0.6554]
[1756002200823,22.81375918,4782.9,4782.8,0.2371]
[1756002202329,22.3388,4782.9,4782.8,1.3306]
[1756002203429,19.131,4783.1,4782.8,1.3306]
[1756002203632,19.131,4783.1,4783.0,0.5228]
[1756002203834,19.131,4783.1,4783.0,1.3306]
[1756002205027,19.131,4783.1,4782.9,0.41829]
[1756002205428,19.131,4783.1,4782.9,0.65539]
[1756002205634,19.131,4783.1,4782.9,0.41829]
[1756002205835,19.131,4783.1,4783.0,0.2371]
[1756002207935,19.131,4783.1,4782.9,0.41828]
[1756002208330,19.131,4783.1,4783.0,0.2371]
[1756002209436,0.41828,4783.0,4782.7,0.4183]
[1756002209643,19.131,4783.1,4782.6,0.2371]
[1756002210142,19.131,4783.1,4782.6,0.7599]
[1756002210337,19.131,4783.1,4782.8,0.4575]
[1756002210545,19.54927,4783.1,4782.9,0.65538]
[1756002210742,0.41829,4783.0,4782.9,0.2371]
[1756002211036,3.2078,4783.4,4782.6,0.2371]
[1756002211232,0.41828,4783.0,4782.9,0.41828]
[1756002211432,19.54528,4783.0,4782.9,0.41828]
[1756002211643,19.127,4783.0,4782.9,0.87578]
[1756002211837,19.127,4783.0,4782.9,1.39858]
[1756002212840,19.127,4783.0,4782.9,1.74888]
[1756002213436,19.127,4783.0,4782.9,1.39858]
[1756002213742,19.127,4783.0,4782.9,0.2371]
[1756002214141,0.4183,4782.8,4782.4,0.2311]
[1756002214336,19.127,4782.7,4782.5,0.41832]
[1756002214533,0.4183,4782.8,4782.4,0.2311]
[1756002214735,0.4183,4782.8,4782.1,3.2078]
[1756002214736,19.127,4782.7,4782.6,0.2311]
[1756002214939,19.127,4782.7,4782.6,0.8518]
[1756002215147,3.2078,4783.4,4783.2,0.41826]
[1756002215338,3.2078,4783.4,4783.3,0.2311]
[1756002215537,22.80580437,4783.4,4783.3,0.2311]
[1756002216839,22.3348,4783.4,4783.3,0.2311]
[1756002217034,22.3348,4783.4,4783.3,0.64935]
[1756002217942,22.3348,4783.4,4783.3,1.41995]
[1756002218142,22.3348,4783.4,4783.3,1.77995]
[1756002218338,3.2078,4783.4,4783.3,1.77995]
[1756002218544,30.134,4784.0,4783.3,1.77995]
[1756002218545,33.3418,4784.0,4783.9,0.2311]
[1756002218744,52.93922711,4784.0,4783.9,0.2311]
[1756002219049,52.93922711,4784.0,4783.9,0.4626]
[1756002219440,52.93922711,4784.0,4783.9,0.2311]
[1756002219635,52.93922711,4784.0,4783.8,0.4182]
[1756002219945,52.4678,4784.0,4783.9,0.2311]
[1756002220147,52.93928458,4784.0,4783.9,0.2311]
[1756002220347,0.41823,4783.6,4783.3,0.64935]
[1756002220550,19.126,4783.5,4783.4,0.41824]
[1756002220940,19.126,4783.5,4783.4,1.77994]
[1756002222735,19.126,4783.5,4783.4,2.05214484]
[1756002222939,19.126,4783.5,4783.4,1.77994]
[1756002223151,19.126,4783.5,4783.4,2.05214434]
[1756002223442,19.126,4783.5,4783.4,0.64934]
[1756002223945,19.126,4783.5,4783.4,1.77994]
[1756002224134,33.3418,4784.0,4783.8,0.4182]
[1756002224135,3.2078,4784.0,4783.8,0.4182]
[1756002224340,19.59565659,4783.9,4783.8,0.4626]
[1756002224547,19.59565659,4783.9,4783.8,0.2311]
[1756002224743,19.59565659,4783.9,4783.6,0.41822]
[1756002224944,0.47165659,4783.8,4783.6,0.64932]
[1756002225142,0.47165659,4783.8,4782.9,3.5892]
[1756002225349,0.41822,4783.7,4783.1,1.0017]
[1756002225551,19.124,4783.6,4783.4,0.2311]
[1756002225742,19.54223,4783.6,4783.4,0.64934]
[1756002225942,19.54223,4783.6,4783.5,0.2311]
[1756002226143,19.124,4783.6,4783.5,0.2311]
[1756002226848,19.5959261,4783.6,4783.5,0.2311]
[1756002227750,20.0141561,4783.6,4783.4,0.41824]
[1756002228050,0.4719261,4783.5,4783.4,0.41824]
[1756002228251,0.4719261,4783.5,4783.4,0.92179558]
[1756002228953,0.4719261,4783.5,4783.4,1.30209558]
[1756002229140,0.4719261,4783.5,4783.4,1.69239558]
[1756002229345,0.4719261,4783.5,4783.4,1.45199558]
[1756002229648,0.4719261,4783.5,4783.4,0.92179558]
[1756002229853,0.4719261,4783.5,4783.4,2.05239558]
[1756002230246,0.47215225,4783.9,4783.8,1.18841]
[1756002230445,0.47215225,4783.9,4783.8,2.05236558]
[1756002231741,0.47215225,4783.9,4783.8,6.05236558]
[1756002232550,3.2078,4784.5,4784.4,0.41816]
[1756002232749,3.67992752,4784.5,4784.4,2.05089498]
[1756002235754,3.67992752,4784.5,4784.4,1.77986]
[1756002235955,3.67992752,4784.5,4784.4,2.05060159]
[1756002236649,3.67992752,4784.5,4784.4,1.77986]
[1756002236847,3.2078,4784.5,4784.4,2.05053444]
[1756002239048,0.41812,4784.9,4784.8,0.41812]
[1756002239258,0.41812,4784.9,4784.8,0.64922]
[1756002240252,22.3308,4785.0,4784.8,0.2311]
[1756002240556,22.3308,4785.0,4784.9,1.77982]
[1756002240758,22.3308,4785.0,4784.9,1.0017]
[1756002240955,22.3308,4785.0,4784.9,0.6114]
[1756002241160,22.3308,4785.0,4784.9,0.3799]
[1756002241554,3.2078,4785.6,4785.5,0.79796]
[1756002241760,22.79808498,4785.6,4785.5,1.77976]
[1756002241961,19.59028498,4785.6,4785.5,1.77976]
[1756002242160,19.119,4785.6,4785.5,1.77976]
[1756002242361,3.2078,4786.1,4786.0,1.77972]
[1756002242555,22.3268,4786.1,4786.0,1.3617]
[1756002243255,3.2078,4786.1,4786.0,1.3617]
[1756002243851,19.119,4786.3,4786.1,1.71961]
[1756002244060,19.119,4786.3,4786.2,1.3016]
[1756002244958,3.2078,4786.7,4786.6,0.7778]
[1756002245163,3.2078,4786.7,4786.6,1.3016]
[1756002246769,22.3258,4787.8,4787.7,0.41787]
[1756002246960,22.3258,4787.8,4787.7,1.22857]
[1756002247469,3.2078,4787.8,4787.7,1.22857]
[1756002247770,3.2078,4787.8,4787.7,1.71947]
[1756002250475,3.2078,4787.8,4787.7,1.3016]
[1756002254669,3.2078,4788.3,4788.2,0.2176]
[1756002254868,3.2078,4788.3,4788.2,1.71943]
[1756002257179,3.2078,4788.3,4788.2,0.85923]
[1756002257478,3.2078,4788.3,4788.2,1.01093]
[1756002257977,3.2078,4788.3,4788.2,1.71943]
[1756002258179,3.2078,4788.3,4788.2,0.9652]
[1756002258371,3.2078,4788.3,4788.2,0.2199]
[1756002258573,3.2078,4788.3,4787.9,0.2199]
[1756002258972,0.41783,4788.2,4788.0,0.2199]
[1756002259175,19.108,4788.1,4788.0,0.2199]
[1756002259569,0.41788,4787.6,4787.3,0.4179]
[1756002259777,0.41788,4787.6,4787.3,0.6394]
[1756002259977,0.41788,4787.6,4787.5,0.2199]
[1756002260381,19.106,4787.7,4787.6,0.63778]
[1756002260578,19.106,4787.7,4787.6,0.2199]
[1756002261280,19.106,4787.7,4787.6,0.5931]
[1756002261481,19.106,4787.7,4787.6,1.3016]
[1756002262384,19.106,4787.7,4787.6,0.9652]
[1756002262977,19.106,4787.7,4787.6,0.2199]
[1756002263379,19.106,4787.7,4787.3,0.4179]
[1756002263380,22.3138,4787.7,4787.3,0.4179]
[1756002263580,0.41789,4787.5,4787.4,0.2199]
[1756002264287,3.2078,4787.7,4787.5,0.41788]
[1756002264479,3.2078,4788.3,4787.9,0.41785]
[1756002264684,0.41784,4788.1,4787.9,0.41785]
[1756002265083,0.41784,4788.1,4788.0,0.2199]
[1756002265285,19.52183,4788.2,4788.0,0.63774]
[1756002265583,19.52183,4788.2,4788.1,0.2199]
[1756002265784,19.99153203,4788.2,4788.1,0.2199]
[1756002266079,0.41787,4787.7,4787.6,0.3364]
[1756002266280,19.52187,4787.7,4787.6,0.2199]
[1756002266483,19.104,4787.7,4787.6,0.2199]
[1756002266788,19.104,4787.7,4787.6,1.3016]
[1756002267288,19.104,4787.7,4787.6,1.57152148]
[1756002269783,19.104,4787.7,4787.6,1.23512148]
[1756002270287,19.104,4787.7,4787.6,0.48982148]
[1756002270587,19.104,4787.7,4787.6,0.86302148]
[1756002270787,19.104,4787.7,4787.6,1.57152148]
[1756002271185,19.104,4787.7,4787.6,0.48982148]
[1756002271381,19.57562712,4787.7,4787.6,0.71132148]
[1756002271784,19.57562712,4787.7,4787.6,0.48982148]
[1756002272882,19.57562712,4787.7,4787.6,0.71132148]
[1756002273093,0.47162712,4787.7,4787.6,1.57152148]
[1756002274091,3.2078,4788.3,4788.2,1.76523]
[1756002274289,3.6799939,4788.3,4788.2,2.03515148]
[1756002275980,0.4721939,4788.3,4788.2,1.76523]
[1756002276188,0.4721939,4788.3,4788.2,2.03642347]
[1756002276487,0.4721939,4788.3,4788.2,2.03650633]
[1756002276882,0.4721939,4788.3,4788.2,2.03651396]
[1756002277590,0.4721939,4788.3,4788.2,1.70261396]
[1756002277790,0.4721939,4788.3,4788.2,1.32521396]
[1756002278090,0.4721939,4788.3,4788.2,2.03651396]
[1756002278891,0.4721939,4788.3,4788.2,1.55281396]
[1756002279492,0.4721939,4788.3,4788.2,1.55277994]
[1756002279784,0.4721939,4788.3,4788.2,2.23247044]
[1756002280589,0.4721939,4788.3,4788.2,2.39912532]
[1756002280788,0.4721939,4788.3,4788.2,2.23247044]
[1756002281494,0.4721939,4788.3,4788.2,6.23247044]
[1756002281884,0.4721939,4788.3,4788.2,2.23247044]
[1756002282285,3.2078,4788.9,4788.2,2.23247044]
[1756002282286,3.2078,4788.9,4788.8,0.41778]
[1756002282492,3.67158851,4788.9,4788.8,1.16442994]
[1756002282991,3.67158851,4788.9,4788.8,0.27124994]
[1756002283199,3.67158851,4788.9,4788.8,0.50804994]
[1756002283889,3.67158851,4788.9,4788.8,0.74664994]
[1756002284096,3.67158851,4788.9,4788.8,1.28474994]
[1756002284289,3.67158851,4788.9,4788.8,1.61864994]
[1756002286097,3.67158851,4788.9,4788.8,1.62255572]
[1756002286294,0.46378851,4788.9,4788.8,1.62255572]
[1756002286495,0.46378851,4788.9,4788.8,1.62256172]
[1756002288293,19.101,4789.1,4789.0,0.5381]
[1756002288496,19.56434206,4789.1,4789.0,1.62256172]
[1756002289498,19.56434206,4789.1,4789.0,1.62250412]
[1756002291395,0.41776,4789.0,4788.7,0.41778]
[1756002291596,3.2078,4788.8,4788.7,0.2368]
[1756002292200,3.67107694,4788.8,4788.6,0.2368]
[1756002292397,19.56027694,4788.7,4788.3,0.3883]
[1756002292699,19.56027694,4788.7,4788.2,1.04457]
[1756002292700,19.097,4788.7,4788.6,0.41779]
[1756002292900,19.56029358,4788.7,4788.6,1.05389]
[1756002293299,19.56029358,4788.7,4788.6,1.43129]
[1756002293606,19.56029358,4788.7,4788.6,1.76519]
[1756002293990,19.56029358,4788.7,4788.6,1.43129]
[1756002294196,19.56029358,4788.7,4788.6,0.2368]
[1756002294691,0.4178,4788.5,4787.7,3.9301]
[1756002294897,0.41782,4788.4,4788.0,0.4754]
[1756002295102,19.51482,4788.3,4788.2,0.2368]
[1756002295300,0.41784,4788.1,4787.9,0.41785]
[1756002295700,0.41784,4788.1,4787.2,3.2078]
[1756002295701,0.41788,4787.7,4787.3,0.4179]
[1756002295996,1.05218095,4788.7,4787.2,0.3339]
[1756002295997,19.096,4787.6,4787.5,0.6361]
[1756002296198,19.096,4787.6,4787.5,1.28988]
[1756002296802,0.41785,4788.1,4787.9,0.41785]
[1756002297000,19.56492132,4788.0,4787.9,0.2368]
[1756002297299,19.56492132,4788.0,4787.9,0.65466]
[1756002297699,19.56492132,4788.0,4787.9,1.43136]
[1756002297898,19.56492132,4788.0,4787.9,1.76526]
[1756002298502,19.56492132,4788.0,4787.9,1.43136]
[1756002298707,19.56492132,4788.0,4787.9,1.76526]
[1756002299003,19.56492132,4788.0,4787.9,1.43136]
[1756002299408,19.56492132,4788.0,4787.9,0.65466]
[1756002300304,0.41789,4787.5,4787.3,0.65471]
[1756002300500,0.41789,4787.5,4786.9,0.41794]
[1756002300501,19.096,4787.5,4786.9,0.41794]
[1756002300697,0.41792,4787.2,4786.8,0.2368]
[1756002300904,19.096,4787.1,4786.8,0.2368]
[1756002301100,0.41794,4786.9,4786.7,3.2078]
[1756002301310,0.41796,4786.7,4786.5,0.2368]
[1756002301507,19.097,4786.6,4786.5,0.2368]
[1756002301807,3.2078,4787.1,4787.0,0.65473]
[1756002302003,22.77347266,4787.1,4787.0,1.76533]
[1756002303208,3.2078,4787.1,4787.0,6.02830064]
[1756002304415,22.3048,4787.8,4787.7,0.41787]
[1756002304615,22.3048,4787.8,4787.7,1.74827]
[1756002305516,3.2078,4788.5,4788.4,1.3304]
[1756002305708,0.46844758,4788.5,4788.4,1.3304]
[1756002305908,19.097,4788.6,4788.5,0.9435]
[1756002306117,19.097,4788.6,4788.5,1.7482]
[1756002306714,0.00770095,4788.7,4788.5,0.9509]
[1756002306916,0.00770095,4788.7,4788.6,0.2387]
[1756002307315,0.41784,4788.1,4787.9,3.2078]
[1756002307511,19.51584,4788.1,4787.9,3.2078]
[1756002307717,0.41788,4787.7,4787.5,0.2387]
[1756002307908,0.41788,4787.7,4787.6,0.26285372]
[1756002308109,19.56631592,4787.7,4786.7,0.41796]
[1756002308415,3.2078,4787.2,4787.0,0.41793]
[1756002308619,0.41789,4787.5,4787.3,0.2387]
[1756002308808,0.41789,4787.5,4787.4,0.2387]
[1756002309013,0.41789,4787.5,4787.2,0.65152]
[1756002309014,19.098,4787.5,4786.8,0.65665]
[1756002309215,19.098,4787.5,4786.9,0.26280935]
[1756002309410,0.41794,4787.0,4786.8,0.2387]
[1756002309613,19.51594,4787.0,4786.8,0.2387]
[1756002310015,19.51594,4787.0,4786.9,0.2387]
[1756002310423,19.098,4787.0,4786.9,0.65664]
[1756002311318,19.098,4787.0,4786.9,0.2387]
[1756002311621,0.41794,4786.9,4786.7,0.2387]
[1756002311821,19.098,4787.0,4786.9,0.2387]
[1756002313518,3.2078,4787.2,4787.0,0.41793]
[1756002313819,2.095,4789.4,4787.0,0.41793]
[1756002313820,3.2078,4787.8,4787.7,1.74827]
[1756002314420,3.2078,4787.8,4787.7,0.998]
[1756002314721,3.2078,4787.8,4787.7,0.2387]
[1756002315018,3.62567,4787.8,4786.9,1.27845]
[1756002315222,3.2078,4787.8,4787.7,0.2387]
[1756002315814,0.41789,4787.6,4787.4,0.4179]
[1756002316019,0.4179,4787.4,4787.2,0.41791]
[1756002316220,3.2078,4787.8,4787.7,0.65657]
[1756002316416,3.2078,4787.8,4787.7,1.74827]
[1756002317327,3.2078,4787.8,4787.7,1.3304]
[1756002317622,3.2078,4787.8,4787.7,0.998]
[1756002319120,3.2078,4787.8,4787.7,1.3304]
[1756002319328,0.41781,4788.5,4788.4,0.4723]
[1756002319624,19.1,4788.5,4788.4,1.3304]
[1756002319829,19.56858826,4788.5,4788.4,0.998]
[1756002320225,19.56858826,4788.5,4788.4,0.2387]
[1756002320427,0.41783,4788.3,4788.0,0.2387]
[1756002320728,3.2078,4788.1,4788.0,0.2387]
[1756002320919,3.67648543,4788.1,4788.0,0.2387]
[1756002321119,3.67648543,4788.1,4787.5,0.41789]
[1756002321326,0.41787,4787.8,4787.6,0.68095503]
[1756002321622,0.41789,4787.5,4787.4,0.6566]
[1756002321829,22.72569,4787.5,4787.4,0.26308531]
[1756002323430,22.72569,4787.5,4787.4,0.50178531]
[1756002323626,19.1,4787.5,4787.4,1.59348531]
[1756002324130,3.62564,4788.2,4787.4,0.82908531]
[1756002324325,0.41785,4788.0,4787.9,0.5257]
[1756002324523,0.88680535,4788.0,4787.9,0.998]
[1756002324725,0.46895535,4788.0,4787.9,0.998]
[1756002325026,0.46895535,4788.0,4787.9,1.3304]
[1756002325221,0.00770095,4788.7,4788.6,0.4723]
[1756002325426,19.57972328,4788.7,4788.6,0.4723]
[1756002325626,19.57972328,4788.7,4788.6,0.2387]
[1756002325829,19.57972328,4788.7,4788.2,0.65143]
[1756002325830,0.41781,4788.5,4788.3,0.2387]
[1756002326026,0.46902233,4788.4,4788.3,0.2387]
[1756002326827,0.41781,4788.5,4788.3,0.65652]
[1756002327031,0.41781,4788.5,4788.4,0.2387]
[1756002327332,0.41782,4788.3,4788.1,0.41783]
[1756002327533,22.3098,4788.2,4788.1,0.2387]
[1756002327727,22.3098,4788.2,4788.1,0.88698618]
[1756002328432,22.3098,4788.2,4788.1,1.59228618]
[1756002330042,0.00770095,4788.7,4788.6,0.1528]
[1756002330240,0.00770095,4788.7,4788.6,1.7482]
[1756002330628,0.00770095,4788.7,4788.6,2.01000056]
[1756002332836,0.00770095,4788.7,4788.6,2.20595435]
[1756002334037,0.00770095,4788.7,4788.6,1.7482]
[1756002334237,0.00770095,4788.7,4788.6,2.00977359]
[1756002334439,0.00770095,4788.7,4788.6,2.20572468]
[1756002334742,0.00770095,4788.7,4788.6,2.20562012]
[1756002334944,0.00770095,4788.7,4788.6,2.20561987]
[1756002336343,19.098,4789.5,4789.4,0.95733]
[1756002336538,19.098,4789.5,4789.4,1.73563]
[1756002336841,22.3058,4789.6,4789.5,1.3179]
[1756002338339,22.3058,4789.6,4789.4,0.41773]
[1756002338541,22.3058,4789.6,4789.5,0.2229]
[1756002338737,22.3058,4789.6,4789.5,1.3179]
[1756002339538,22.3058,4789.6,4789.5,0.9919]
[1756002340143,22.3058,4789.6,4789.5,0.5287]
[1756002340341,22.3058,4789.6,4789.5,0.2229]
[1756002341142,3.2078,4789.6,4789.5,1.3179]
[1756002343137,3.2078,4790.1,4790.0,0.56458]
[1756002343347,3.2078,4790.1,4790.0,1.73558]
[1756002343735,0.1,4790.2,4790.0,0.95728]
[1756002343942,0.1,4790.2,4790.1,1.3179]
[1756002345336,4.8708571,4795.3,4791.0,0.95718]
[1756002345337,3.3665,4791.1,4791.0,0.95718]
[1756002345540,22.4605,4791.1,4791.0,1.73548]
[1756002347745,3.2078,4791.1,4791.0,1.73548]
[1756002349140,3.2078,4791.1,4791.0,5.73548]
[1756002349345,3.3665,4791.6,4791.5,1.73545]
[1756002349745,3.3665,4791.6,4791.5,1.40945]
[1756002349947,3.3665,4791.6,4791.1,0.326]
[1756002349948,0.1587,4791.2,4791.1,1.28318]
[1756002350147,0.1587,4791.2,4791.1,1.51258]
[1756002350547,0.1587,4791.2,4791.1,0.9919]
[1756002350747,0.2579,4791.2,4791.1,0.9919]
[1756002350945,0.1587,4791.2,4791.1,0.9919]
[1756002351255,0.0992,4791.0,4790.8,0.6405]
[1756002351549,0.1587,4790.9,4790.8,1.4095]
[1756002352050,0.2579,4790.9,4790.8,0.2229]
[1756002352346,0.1587,4790.6,4790.5,1.73553]
[1756002352553,22.4575,4791.0,4790.9,1.7355]
[1756002353053,22.5567,4791.0,4790.9,0.9919]
[1756002353254,22.4575,4791.0,4790.9,1.3179]
[1756002353548,22.4565,4791.0,4790.9,0.9919]
[1756002353853,22.5557,4791.0,4790.9,0.2229]
[1756002354049,22.4565,4791.0,4790.9,0.9919]
[1756002354256,3.3665,4791.0,4790.9,1.3179]
[1756002356550,3.3665,4791.0,4790.9,0.9919]
[1756002356951,3.4657,4791.0,4790.9,0.9919]
[1756002357152,3.3665,4791.0,4790.9,0.9919]
[1756002357353,3.3665,4791.0,4790.9,1.3179]
[1756002357648,3.4657,4791.0,4790.9,0.2229]
[1756002357853,0.1587,4790.7,4790.6,1.01682]
[1756002358054,0.1587,4790.7,4790.6,1.40952]
[1756002359157,0.1587,4790.7,4790.6,1.73552]
[1756002359352,0.1587,4790.7,4790.6,1.40952]
[1756002359651,19.2457,4790.7,4790.6,0.9919]
[1756002359857,19.3449,4790.7,4790.6,0.9919]
[1756002360054,19.3449,4790.7,4790.6,0.87432]
[1756002360254,19.3449,4790.7,4790.6,0.2229]
[1756002360457,0.2579,4790.5,4790.4,0.2229]
[1756002360756,3.88333,4790.5,4790.4,0.2229]
[1756002360949,0.1587,4789.9,4789.8,0.64059]
[1756002361149,0.1587,4789.9,4789.8,1.40959]
[1756002361456,0.1587,4789.9,4789.8,1.73559]
[1756002361652,0.1587,4790.3,4789.8,0.2294]
[1756002361857,0.1587,4790.3,4790.2,0.7581]
[1756002362261,0.2579,4790.3,4790.2,0.2229]
[1756002362757,0.2579,4790.3,4789.5,0.3058]
[1756002362758,0.41769,4789.9,4789.5,0.3058]
[1756002362954,0.2579,4789.7,4789.6,0.2229]
[1756002363154,0.2579,4789.7,4789.3,0.4523]
[1756002363155,0.41771,4789.6,4789.3,0.4523]
[1756002363349,0.0992,4789.3,4789.1,0.2229]
[1756002363555,20.23230572,4789.2,4789.1,0.2229]
[1756002363949,0.0989,4789.1,4788.9,0.46]
[1756002364154,0.1565,4789.0,4788.9,0.87777]